[Event "FIDE WTC Prel-A 2022"]
[Site "Jerusalem"]
[Date "2022.11.21"]
[Round "4.11"]
[White "Gharamian, Tigran"]
[Black "Barrish, Daniel"]
[Result "1-0"]
[ECO "B52"]
[WhiteElo "2601"]
[BlackElo "2257"]
[Annotator "TA"]
[PlyCount "67"]
[EventDate "2022.11.20"]
[EventType "team-tourn"]
[EventCountry "ISR"]
[SourceTitle "playchess.com"]
[Source "ChessBase"]
[SourceQuality "1"]
[WhiteTeam "France"]
[BlackTeam "South Africa"]
[WhiteTeamCountry "FRA"]
[BlackTeamCountry "RSA"]
[TimeControl "2700+10"]

{[%evp 9,67,7,27,6,12,16,25,19,28,23,33,0,36,19,21,25,7,-21,14,0,0,0,62,58,108,81,176,171,185,193,192,157,188,188,204,196,176,175,179,178,193,193,193,178,310,259,271,253,350,340,345,345,502,447,462,457,579,581,29990,29991]} 1. e4 {[%emt 0:00:03]} c5 {[%emt 0:00:03]} 2. Nf3 {[%emt 0:00:03]} d6 {[%emt 0:00:03]} 3. Bb5+ {[%emt 0:00:02]} Bd7 {[%emt 0:00:02]} 4. c4 {[%emt 0:00:03]} e5 {[%emt 0:00:15]} 5. Nc3 {[%emt 0:00:13]} Be7 {[%emt 0:00:39]} 6. d3 {[%emt 0:00:26] B52: Sicilian: Moscow Variation with 3...Bd7.} Nc6 {[%emt 0:00:23]} 7. a3 {[%emt 0:00:22] [#]} a5 $146 {[%emt 0:00:33]} ({Predecessor:} 7... Nf6 8. Bg5 Ng4 9. Bxc6 Bxc6 10. Bd2 O-O 11. h3 Nf6 12. b4 b6 13. b5 Bb7 {1-0 (54) Iskandarov,M (2535)-Sharapov,E (2380) Chess.com INT 2020}) 8. O-O {[%emt 0:01:40] White has an edge.} f5 {[%emt 0:01:37]} 9. exf5 {[%emt 0:10:37]} (9. Nd5 {with more complications.} Nf6 10. exf5 Bxf5 11. d4) 9... Bxf5 {[%emt 0:00:37]} 10. Qa4 {[%emt 0:00:03]} Bd7 {[%emt 0:01:40]} 11. Nd2 {[%emt 0:05:20]} Nf6 {[%emt 0:02:01]} 12. Nde4 {[%emt 0:00:15]} O-O {[%emt 0:02:49]} 13. f4 {[%emt 0:00:02]} Be8 {[%emt 0:03:45]} 14. Bd2 {[%emt 0:02:19][%cal Bc1d2,Bd2c3,Bc3d4][%mdl 32]} Nxe4 {[%emt 0:03:45]} 15. Nxe4 {[%emt 0:00:49]} Bf6 {[%emt 0:00:47]} (15... Rc8 $11) 16. Bc3 $14 {[%emt 0:02:24] White has more active pieces. The black rooks are badly placed.} exf4 {[%emt 0:10:02] Black is on the road to losing.} (16... Qd7 $14) 17. Nxf6+ $16 {[%emt 0:01:35]} gxf6 {[%emt 0:01:14]} (17... Rxf6 $16 {is a better defense.} 18. Bxf6 Qxf6) 18. Rxf4 $18 {[%emt 0:00:12]} Ne5 {[%emt 0:00:15]} 19. d4 {[%emt 0:00:34]} cxd4 {[%emt 0:00:56]} 20. Bxd4 {[%emt 0:21:28]} Rc8 {[%emt 0:00:54]} 21. Raf1 {[%emt 0:00:00]} Bg6 {[%emt 0:00:54]} 22. c5 {[%emt 0:00:00]} Kg7 {[%emt 0:04:58]} 23. cxd6 {[%emt 0:00:00]} Qxd6 {[%emt 0:01:13]} 24. Qxa5 {[%emt 0:00:00]} Qd5 {[%emt 0:03:29] [#] aiming for ...Bd3.} 25. Qb6 {[%emt 0:00:00][%cal Rf4f6]} Rc2 {[%emt 0:00:30][%csl Gc2][%cal Rd5g2]} 26. R4f2 {[%emt 0:00:00]} Rf7 {[%emt 0:01:48]} (26... Rxf2 $142 27. Rxf2 Be4) 27. a4 {[%emt 0:00:00]} Rxf2 {[%emt 0:00:41]} 28. Rxf2 {[%emt 0:00:00]} ({Don't play} 28. Bxf2 $6 Bd3 $16) 28... Ng4 {[%emt 0:00:35]} 29. Rf4 {[%emt 0:00:00]} Qg5 {[%emt 0:00:20]} 30. Qd6 {[%emt 0:00:00]} h5 {[%emt 0:03:05]} (30... Ne5 {might work better.} 31. g3 h5) 31. h3 {[%emt 0:00:00][%cal Bh2h3,Bh3h4][%mdl 32]} Nh6 {[%emt 0:00:05]} 32. h4 {[%emt 0:00:00]} Qg3 {[%emt 0:00:01]} 33. Rxf6 {[%emt 0:00:22]} Qe1+ {[%emt 0:00:27]} 34. Rf1+ {[%emt 0:00:08] Weighted Error Value: White=0.08 (flawless) /Black=0.53} 1-0

[Event "FIDE WTC Prel-A 2022"]
[Site "Jerusalem"]
[Date "2022.11.21"]
[Round "4.12"]
[White "Mhango, Banele"]
[Black "Lagarde, Maxime"]
[Result "1/2-1/2"]
[ECO "A30"]
[WhiteElo "2210"]
[BlackElo "2573"]
[Annotator "TA"]
[PlyCount "103"]
[EventDate "2022.11.20"]
[EventType "team-tourn"]
[EventCountry "ISR"]
[SourceTitle "playchess.com"]
[Source "ChessBase"]
[SourceQuality "1"]
[WhiteTeam "South Africa"]
[BlackTeam "France"]
[WhiteTeamCountry "RSA"]
[BlackTeamCountry "FRA"]
[TimeControl "2700+10"]

{[%evp 13,103,-27,0,0,21,22,33,25,8,11,12,19,47,19,25,28,18,23,22,20,29,0,31,32,29,22,23,0,77,66,60,47,55,60,64,42,82,61,81,67,77,55,54,48,60,0,54,37,48,48,48,48,48,48,48,48,48,48,48,48,48,48,48,48,48,48,48,48,48,19,48,48,48,48,48,56,56,55,59,63,78,48,48,48,48,56,56,0,0,0,70,0]} 1. Nf3 {[%emt 0:00:04]} Nf6 {[%emt 0:00:01]} 2. g3 {[%emt 0:00:01]} b6 {[%emt 0:00:03]} 3. Bg2 {[%emt 0:00:02]} Bb7 {[%emt 0:00:01]} 4. O-O {[%emt 0:00:03]} g6 {[%emt 0:00:38]} 5. c4 {[%emt 0:00:29]} Bg7 {[%emt 0:00:03]} 6. Nc3 {[%emt 0:00:04]} O-O {[%emt 0:00:03]} 7. Qc2 {[%emt 0:01:13]} c5 {[%emt 0:00:17]} 8. Rd1 {[%emt 0:01:11] A30: Symmetrical English: Double Fianchetto and Hedgehog.} d6 {[%emt 0:01:14]} 9. d4 {[%emt 0:00:16]} cxd4 {[%emt 0:00:03]} 10. Nxd4 {[%emt 0:00:02]} Bxg2 {[%emt 0:00:10]} 11. Kxg2 {[%emt 0:00:02]} Qc8 {[%emt 0:00:10]} (11... Qd7 {with more complications.} 12. b3 d5 13. cxd5 Nxd5 14. Bb2 Nxc3 15. Qxc3 Na6) 12. b3 {[%emt 0:00:09]} Nbd7 {[%emt 0:00:36]} 13. Bb2 {[%emt 0:00:06]} Qb7+ {[%emt 0:00:32] [#]} 14. f3 $146 {[%emt 0:01:36]} ({Predecessor:} 14. Kg1 Rac8 15. Qd2 Nc5 16. f3 Ncd7 17. Nc2 a6 18. Nb4 b5 19. cxb5 axb5 20. Ncd5 {0-1 (46) Daroczy,S (2130)-Comp Genius 4 Debrecen 1998}) 14... Rac8 {[%emt 0:00:33]} 15. e4 {[%emt 0:00:12] Inhibits d5.} a6 {[%emt 0:00:26]} 16. Qe2 {[%emt 0:00:03]} Rfe8 {[%emt 0:00:51]} 17. Rac1 {[%emt 0:01:13]} Nc5 {[%emt 0:04:47]} 18. Nc2 {[%emt 0:03:01][%cal Bd4c2,Bc2b4,Bb4d5][%mdl 32]} Nfd7 {[%emt 0:01:50]} 19. Nb4 {[%emt 0:01:24]} Ne5 {[%emt 0:01:19]} 20. Rb1 {[%emt 0:08:39]} f5 {[%emt 0:08:19]} (20... g5 $11) 21. exf5 $16 {[%emt 0:00:24]} gxf5 {[%emt 0:00:16]} 22. Nbd5 {[%emt 0:00:51]} e6 {[%emt 0:03:32]} 23. Nf4 {[%emt 0:00:35]} Bf8 {[%emt 0:03:11]} 24. Rd2 {[%emt 0:03:01]} Qf7 {[%emt 0:00:56]} 25. Rbd1 {[%emt 0:01:29]} Ng6 {[%emt 0:01:01]} 26. Nxg6 {[%emt 0:06:07]} hxg6 {[%emt 0:00:20]} 27. Qe3 {[%emt 0:00:08]} e5 {[%emt 0:04:49]} 28. Nd5 {[%emt 0:02:51][%cal Bc3d5,Bd5b6,Bb6c4][%mdl 32]} b5 {[%emt 0:00:06]} 29. Qe2 {[%emt 0:00:57]} (29. Qg5 $14 Nd7 30. cxb5 axb5 31. Kh1) 29... bxc4 {[%emt 0:00:49]} (29... Ne6 $11) 30. Nb6 $14 {[%emt 0:02:27]} ({Not} 30. Qxc4 {[#]} Ne4 $1 31. Ne7+ Bxe7 $17) ({Reject} 30. bxc4 Bh6 $11) 30... Rc6 {[%emt 0:05:16]} 31. Nxc4 {[%emt 0:00:11]} Re6 {[%emt 0:00:26]} 32. Ba3 {[%emt 0:01:35]} (32. Qe3 {keeps more tension.} Qh7 33. b4 Nd7 34. Qe2) 32... e4 {[%emt 0:00:49]} 33. Bxc5 {[%emt 0:00:08]} exf3+ {[%emt 0:01:31]} 34. Qxf3 {[%emt 0:00:06]} Rxc5 {[%emt 0:00:06]} 35. Nxd6 {[%emt 0:03:08]} Bxd6 {[%emt 0:00:08]} 36. Rxd6 {[%emt 0:00:01]} Rxd6 {[%emt 0:00:34]} 37. Rxd6 {[%emt 0:00:02][%mdl 4096] Endgame KQR-KQR} ({Much weaker is} 37. Qa8+ Kh7 38. Rxd6 Rc2+ 39. Kh1 Qe7 $15) 37... Rc2+ {[%emt 0:00:23]} 38. Kf1 {[%emt 0:00:34] [#] Hoping for Rd8+.} Rc1+ $1 {[%emt 0:01:16]} 39. Rd1 {[%emt 0:00:34]} Rxd1+ {[%emt 0:00:05]} 40. Qxd1 {[%emt 0:00:01] aiming for Qd6. KQ-KQ} Qb7 {[%emt 0:00:04]} 41. Qd8+ {[%emt 0:00:54]} Kh7 {[%emt 0:00:04]} 42. Kf2 {[%emt 0:00:31]} Qc6 {[%emt 0:00:14]} 43. Qh4+ {[%emt 0:00:41]} Kg7 {[%emt 0:00:03]} 44. Qd4+ {[%emt 0:00:08]} Kh7 $1 {[%emt 0:00:09]} 45. Qc4 {[%emt 0:00:32] Against Qc2+} Qd6 {[%emt 0:00:06]} 46. Qh4+ {[%emt 0:01:22]} Kg7 {[%emt 0:00:05]} 47. Qf4 {[%emt 0:00:13] Against Qd2+} Qc5+ {[%emt 0:00:17]} 48. Qe3 {[%emt 0:00:03]} Qc2+ {[%emt 0:00:06]} 49. Qe2 {[%emt 0:00:01]} Qc5+ {[%emt 0:00:02]} 50. Qe3 {[%emt 0:00:02]} (50. Kf1 $14) 50... Qc2+ $11 {[%emt 0:00:01]} 51. Qe2 {[%emt 0:00:01]} (51. Kg1 $11) 51... Qc5+ $1 $14 {[%emt 0:00:02]} 52. Qe3 {[%emt 0:00:01] Weighted Error Value: White=0.09 (flawless) /Black=0.09 (flawless)} ({White should try} 52. Kf1 $14) 1/2-1/2